{"text_format":"1","workbook":"xlsx","n_sheets":1,"sheets":["Feuil1"],"not_rendered":{"charts":0,"images":1,"macros":1,"external_links":0,"defined_names":1,"comments":0,"pivot_tables":0},"unopened":[],"bounds":{"document_bytes":16777216,"sheet_cells":100000,"rows_first":2000,"rows_last":500,"rows_between":2000,"halvings":0,"cell_chars":16384,"cell_head_chars":4096},"cells_cut":0,"cells_raw":0,"read":"whole","date_system":"1900"}

{"sheet":"Feuil1","index":0,"n_rows":141,"n_cols":30,"rows_kept":141,"cut":false,"hidden":false,"merged":[[140,29,140,31],[136,1,136,27],[137,1,137,27],[138,1,138,27],[139,1,139,27],[101,1,101,27],[48,1,48,27],[127,1,127,27],[128,1,128,27],[129,1,129,27],[130,1,130,27],[131,1,131,27],[132,1,132,27],[133,1,133,27],[134,1,134,27],[135,1,135,27],[81,1,81,27],[82,1,82,27],[83,1,83,27],[84,1,84,27],[85,1,85,27],[86,1,86,27],[87,1,87,27],[88,1,88,27],[59,1,59,27],[60,1,60,27],[61,1,61,27],[89,1,89,27],[62,1,62,27],[63,1,63,27],[64,1,64,27],[65,1,65,27],[66,1,66,27],[67,1,67,27],[68,1,68,27],[69,1,69,27],[70,1,70,27],[78,1,78,27],[79,1,79,27],[80,1,80,27],[139,29,139,31],[138,29,138,31],[135,29,135,31],[136,29,136,31],[137,29,137,31],[134,29,134,31],[94,29,94,31],[101,29,101,31],[130,29,130,31],[102,29,102,31],[133,29,133,31],[131,29,131,31],[132,29,132,31],[127,29,127,31],[128,29,128,31],[129,29,129,31],[116,29,116,31],[117,29,117,31],[109,29,109,31],[110,29,110,31],[111,29,111,31],[95,29,95,31],[102,1,102,27],[103,1,103,27],[104,1,104,27],[105,1,105,27],[106,1,106,27],[124,29,124,31],[125,29,125,31],[126,29,126,31],[124,1,124,27],[125,1,125,27],[126,1,126,27],[121,29,121,31],[122,29,122,31],[123,29,123,31],[121,1,121,27],[122,1,122,27],[123,1,123,27],[118,29,118,31],[119,29,119,31],[120,29,120,31],[118,1,118,27],[119,1,119,27],[120,1,120,27],[115,29,115,31],[115,1,115,27],[116,1,116,27],[117,1,117,27],[112,29,112,31],[113,29,113,31],[114,29,114,31],[112,1,112,27],[113,1,113,27],[114,1,114,27],[109,1,109,27],[110,1,110,27],[111,1,111,27],[106,29,106,31],[107,29,107,31],[108,29,108,31],[107,1,107,27],[108,1,108,27],[103,29,103,31],[104,29,104,31],[105,29,105,31],[90,29,90,31],[100,29,100,31],[96,6,98,31],[100,1,100,27],[93,29,93,31],[91,29,91,31],[92,29,92,31],[90,1,90,27],[91,1,91,27],[92,1,92,27],[93,1,93,27],[94,1,94,27],[59,29,59,31],[45,29,45,31],[65,29,65,31],[81,29,81,31],[82,29,82,31],[89,29,89,31],[84,29,84,31],[85,29,85,31],[86,29,86,31],[87,29,87,31],[88,29,88,31],[78,29,78,31],[79,29,79,31],[80,29,80,31],[49,29,49,31],[60,29,60,31],[63,29,63,31],[62,29,62,31],[61,29,61,31],[26,23,26,28],[33,1,33,27],[34,29,34,31],[43,29,43,31],[44,29,44,31],[48,29,48,31],[47,29,47,31],[37,29,37,31],[38,29,38,31],[39,29,39,31],[40,29,40,31],[41,29,41,31],[46,29,46,31],[42,29,42,31],[43,1,43,27],[44,1,44,27],[45,1,45,27],[46,1,46,27],[47,1,47,27],[25,0,26,9],[25,11,26,13],[28,1,28,27],[29,1,29,27],[30,1,30,27],[31,1,31,27],[32,1,32,27],[40,1,40,27],[41,1,41,27],[34,1,34,27],[35,1,35,27],[36,1,36,27],[42,1,42,27],[58,1,58,27],[10,22,10,30],[11,22,11,30],[12,22,12,30],[29,29,29,31],[24,29,24,31],[25,29,25,31],[26,29,26,31],[27,29,27,31],[28,29,28,31],[17,22,17,30],[18,22,18,30],[19,22,19,30],[10,4,10,14],[11,4,11,14],[50,8,50,22],[12,4,12,14],[32,29,32,31],[33,29,33,31],[35,29,35,31],[36,29,36,31],[25,14,26,17],[25,18,26,20],[0,0,0,31],[1,10,4,31],[64,29,64,31],[73,29,73,31],[83,29,83,31],[66,29,66,31],[72,29,72,31],[52,6,55,31],[58,29,58,31],[10,0,10,2],[30,29,30,31],[31,29,31,31],[71,29,71,31],[1,0,3,9],[9,0,9,16],[12,0,12,2],[11,0,11,2],[5,18,5,24],[4,0,4,9],[5,25,5,30],[37,1,37,27],[38,1,38,27],[6,4,6,14],[39,1,39,27],[5,4,5,15],[10,18,10,21],[77,29,77,31],[74,29,74,31],[67,29,67,31],[68,29,68,31],[69,29,69,31],[70,29,70,31],[71,1,71,27],[72,1,72,27],[73,1,73,27],[74,1,74,27],[75,1,75,27],[76,1,76,27],[77,1,77,27],[76,29,76,31],[75,29,75,31],[13,18,15,20],[21,18,21,20],[21,0,21,2],[24,23,24,28],[25,23,25,28],[27,23,27,28],[15,4,15,14],[7,18,8,31],[13,4,13,14],[14,4,14,14],[13,22,13,30],[14,22,14,30],[21,22,21,30],[15,22,15,30],[16,22,16,30],[19,0,19,14],[17,0,17,2],[17,5,17,9],[17,11,17,14],[13,0,13,2],[14,0,14,2],[21,3,21,12]]}
["Veuillez remplir ce formulaire directement sur votre ordinateur afin de bénéficier des calculs automatiques et des liens web."]
[null,null,null,null,null,null,null,null,null,null,"Détenteur-détentrice d'un abonnement général (AG) à titre privé\nREMBOURSEMENT pour les membres du personnel universitaire "]
[]
[]
["Division des Finances"]
["Personne de contact :",null,null,null,null,null,null,null,null,null,null,null,null,null,null,null,null,null,"N° de téléphone :"]
["Adresse courrier (géographique) :"]
[null,null,null,null,null,null,null,null,null,null,null,null,null,null,null,null,null,null,"L'approbateur-trice valide électroniquement dans l'applicatif SI Notes de frais sur la base de ce formulaire complété et numérisé par le bénéficiaire dans le même applicatif SI Notes de frais."]
[]
["Bénéficiaire de la prestation :",null,null,null,null,null,null,null,null,null,null,null,null,null,null,null,null,null,"Contresignataire ou l'approbateur-trice :"]
["Nom et prénom :",null,null,null,null,null,null,null,null,null,null,null,null,null,null,null,null,null,"Nom et prénom :"]
["Fonction :",null,null,null,null,null,null,null,null,null,null,null,null,null,null,null,null,null,"Fonction :"]
["Adresse privée :"]
["Nom de la banque ou CCP :",null,null,null,null,null,null,null,null,null,null,null,null,null,null,null,null,null,"Explication au cas ou le contresignataire n'est pas le supérieur hiérarchique direct"]
["Adresse :"]
["N° IBAN :"]
[]
["Validité de l'abonnement général :",null,null,null,"du",null,null,null,null,null,"au"]
[]
["Par ma signature, j'atteste de la conformité aux règles de l'Université. Les frais dont le remboursement sollicités ne sont pas pris en charge, même partiellement, par un tiers."]
[]
["Signature du bénéficiaire \net date :"]
[]
[]
[null,null,null,null,null,null,null,null,null,null,null,null,null,null,null,null,null,null,null,null,null,null,null,"Dépenses de la période (50%)",null,null,null,null,null,{"$f":"(SUM(AD30:AF49)+SUM(AD60:AF95)+SUM(AD102:AF140))/2","v":0}]
["Demande de remboursement pour la période du ",null,null,null,null,null,null,null,null,null,null,null,null,null,"au",null,null,null,null,null,null,null,null,"Forfait demi-tarif CFF (1 fois par an)",null,null,null,null,null,0]
[null,null,null,null,null,null,null,null,null,null,null,null,null,null,null,null,null,null,null,null,null,null,null,"Avance reçue",null,null,null,null,null,0]
[null,null,null,null,null,null,null,null,null,null,null,null,null,null,null,null,null,null,null,null,null,null,null,{"$f":"IF(AD28>0,\"Somme à rembourser\",\"Somme à restituer\")","v":"Somme à restituer"},null,null,null,null,null,{"$f":"AD25+AD26-AD27","v":0}]
["N° ","Lieu, motif et dates des voyages",null,null,null,null,null,null,null,null,null,null,null,null,null,null,null,null,null,null,null,null,null,null,null,null,null,null,"devise","Montant  \n(plein tarif)"]
[1,null,null,null,null,null,null,null,null,null,null,null,null,null,null,null,null,null,null,null,null,null,null,null,null,null,null,null,"CHF"]
[{"$f":"A30+1","v":2},null,null,null,null,null,null,null,null,null,null,null,null,null,null,null,null,null,null,null,null,null,null,null,null,null,null,null,"CHF"]
[{"$f":"A31+1","v":3},null,null,null,null,null,null,null,null,null,null,null,null,null,null,null,null,null,null,null,null,null,null,null,null,null,null,null,"CHF"]
[4,null,null,null,null,null,null,null,null,null,null,null,null,null,null,null,null,null,null,null,null,null,null,null,null,null,null,null,"CHF"]
[5,null,null,null,null,null,null,null,null,null,null,null,null,null,null,null,null,null,null,null,null,null,null,null,null,null,null,null,"CHF"]
[6]
[7,null,null,null,null,null,null,null,null,null,null,null,null,null,null,null,null,null,null,null,null,null,null,null,null,null,null,null,"CHF"]
[8,null,null,null,null,null,null,null,null,null,null,null,null,null,null,null,null,null,null,null,null,null,null,null,null,null,null,null,"CHF"]
[9,null,null,null,null,null,null,null,null,null,null,null,null,null,null,null,null,null,null,null,null,null,null,null,null,null,null,null,"CHF"]
[10,null,null,null,null,null,null,null,null,null,null,null,null,null,null,null,null,null,null,null,null,null,null,null,null,null,null,null,"CHF"]
[11,null,null,null,null,null,null,null,null,null,null,null,null,null,null,null,null,null,null,null,null,null,null,null,null,null,null,null,"CHF"]
[12,null,null,null,null,null,null,null,null,null,null,null,null,null,null,null,null,null,null,null,null,null,null,null,null,null,null,null,"CHF"]
[13,null,null,null,null,null,null,null,null,null,null,null,null,null,null,null,null,null,null,null,null,null,null,null,null,null,null,null,"CHF"]
[14,null,null,null,null,null,null,null,null,null,null,null,null,null,null,null,null,null,null,null,null,null,null,null,null,null,null,null,"CHF"]
[15,null,null,null,null,null,null,null,null,null,null,null,null,null,null,null,null,null,null,null,null,null,null,null,null,null,null,null,"CHF"]
[16,null,null,null,null,null,null,null,null,null,null,null,null,null,null,null,null,null,null,null,null,null,null,null,null,null,null,null,"CHF"]
[17,null,null,null,null,null,null,null,null,null,null,null,null,null,null,null,null,null,null,null,null,null,null,null,null,null,null,null,"CHF"]
[18,null,null,null,null,null,null,null,null,null,null,null,null,null,null,null,null,null,null,null,null,null,null,null,null,null,null,null,"CHF"]
[19,null,null,null,null,null,null,null,null,null,null,null,null,null,null,null,null,null,null,null,null,null,null,null,null,null,null,null,"CHF"]
[20,null,null,null,null,null,null,null,null,null,null,null,null,null,null,null,null,null,null,null,null,null,null,null,null,null,null,null,"CHF"]
[null,null,null,null,null,null,null,null,null,null,null,null,null,null,null,null,null,null,null,null,null,null,null,null,null,null,null,null,"total p.1",{"$f":"SUM(AD30:AF49)","v":0}]
[null,null,null,null,null,null,null,null,"ETIQUETTE COMPTABLE SVP"]
[]
[null,null,null,null,null,null,{"$f":"K2","v":"Détenteur-détentrice d'un abonnement général (AG) à titre privé\nREMBOURSEMENT pour les membres du personnel universitaire "}]
[]
[]
[]
[]
[]
["N° ",{"$f":"B29","v":"Lieu, motif et dates des voyages"},null,null,null,null,null,null,null,null,null,null,null,null,null,null,null,null,null,null,null,null,null,null,null,null,null,null,"devise","Montant  \n(plein tarif)"]
[{"$f":"A49+1","v":21},null,null,null,null,null,null,null,null,null,null,null,null,null,null,null,null,null,null,null,null,null,null,null,null,null,null,null,"CHF"]
[{"$f":"A60+1","v":22},null,null,null,null,null,null,null,null,null,null,null,null,null,null,null,null,null,null,null,null,null,null,null,null,null,null,null,"CHF"]
[{"$f":"A61+1","v":23},null,null,null,null,null,null,null,null,null,null,null,null,null,null,null,null,null,null,null,null,null,null,null,null,null,null,null,"CHF"]
[{"$f":"A62+1","v":24},null,null,null,null,null,null,null,null,null,null,null,null,null,null,null,null,null,null,null,null,null,null,null,null,null,null,null,"CHF"]
[25,null,null,null,null,null,null,null,null,null,null,null,null,null,null,null,null,null,null,null,null,null,null,null,null,null,null,null,"CHF"]
[26,null,null,null,null,null,null,null,null,null,null,null,null,null,null,null,null,null,null,null,null,null,null,null,null,null,null,null,"CHF"]
[27,null,null,null,null,null,null,null,null,null,null,null,null,null,null,null,null,null,null,null,null,null,null,null,null,null,null,null,"CHF"]
[28,null,null,null,null,null,null,null,null,null,null,null,null,null,null,null,null,null,null,null,null,null,null,null,null,null,null,null,"CHF"]
[29,null,null,null,null,null,null,null,null,null,null,null,null,null,null,null,null,null,null,null,null,null,null,null,null,null,null,null,"CHF"]
[30,null,null,null,null,null,null,null,null,null,null,null,null,null,null,null,null,null,null,null,null,null,null,null,null,null,null,null,"CHF"]
[31,null,null,null,null,null,null,null,null,null,null,null,null,null,null,null,null,null,null,null,null,null,null,null,null,null,null,null,"CHF"]
[32,null,null,null,null,null,null,null,null,null,null,null,null,null,null,null,null,null,null,null,null,null,null,null,null,null,null,null,"CHF"]
[33,null,null,null,null,null,null,null,null,null,null,null,null,null,null,null,null,null,null,null,null,null,null,null,null,null,null,null,"CHF"]
[34,null,null,null,null,null,null,null,null,null,null,null,null,null,null,null,null,null,null,null,null,null,null,null,null,null,null,null,"CHF"]
[35,null,null,null,null,null,null,null,null,null,null,null,null,null,null,null,null,null,null,null,null,null,null,null,null,null,null,null,"CHF"]
[36,null,null,null,null,null,null,null,null,null,null,null,null,null,null,null,null,null,null,null,null,null,null,null,null,null,null,null,"CHF"]
[37,null,null,null,null,null,null,null,null,null,null,null,null,null,null,null,null,null,null,null,null,null,null,null,null,null,null,null,"CHF"]
[38,null,null,null,null,null,null,null,null,null,null,null,null,null,null,null,null,null,null,null,null,null,null,null,null,null,null,null,"CHF"]
[39,null,null,null,null,null,null,null,null,null,null,null,null,null,null,null,null,null,null,null,null,null,null,null,null,null,null,null,"CHF"]
[40,null,null,null,null,null,null,null,null,null,null,null,null,null,null,null,null,null,null,null,null,null,null,null,null,null,null,null,"CHF"]
[41,null,null,null,null,null,null,null,null,null,null,null,null,null,null,null,null,null,null,null,null,null,null,null,null,null,null,null,"CHF"]
[42,null,null,null,null,null,null,null,null,null,null,null,null,null,null,null,null,null,null,null,null,null,null,null,null,null,null,null,"CHF"]
[43,null,null,null,null,null,null,null,null,null,null,null,null,null,null,null,null,null,null,null,null,null,null,null,null,null,null,null,"CHF"]
[44,null,null,null,null,null,null,null,null,null,null,null,null,null,null,null,null,null,null,null,null,null,null,null,null,null,null,null,"CHF"]
[45,null,null,null,null,null,null,null,null,null,null,null,null,null,null,null,null,null,null,null,null,null,null,null,null,null,null,null,"CHF"]
[46,null,null,null,null,null,null,null,null,null,null,null,null,null,null,null,null,null,null,null,null,null,null,null,null,null,null,null,"CHF"]
[47,null,null,null,null,null,null,null,null,null,null,null,null,null,null,null,null,null,null,null,null,null,null,null,null,null,null,null,"CHF"]
[48,null,null,null,null,null,null,null,null,null,null,null,null,null,null,null,null,null,null,null,null,null,null,null,null,null,null,null,"CHF"]
[49,null,null,null,null,null,null,null,null,null,null,null,null,null,null,null,null,null,null,null,null,null,null,null,null,null,null,null,"CHF"]
[50,null,null,null,null,null,null,null,null,null,null,null,null,null,null,null,null,null,null,null,null,null,null,null,null,null,null,null,"CHF"]
[51,null,null,null,null,null,null,null,null,null,null,null,null,null,null,null,null,null,null,null,null,null,null,null,null,null,null,null,"CHF"]
[52,null,null,null,null,null,null,null,null,null,null,null,null,null,null,null,null,null,null,null,null,null,null,null,null,null,null,null,"CHF"]
[53,null,null,null,null,null,null,null,null,null,null,null,null,null,null,null,null,null,null,null,null,null,null,null,null,null,null,null,"CHF"]
[54,null,null,null,null,null,null,null,null,null,null,null,null,null,null,null,null,null,null,null,null,null,null,null,null,null,null,null,"CHF"]
[55,null,null,null,null,null,null,null,null,null,null,null,null,null,null,null,null,null,null,null,null,null,null,null,null,null,null,null,"CHF"]
[56,null,null,null,null,null,null,null,null,null,null,null,null,null,null,null,null,null,null,null,null,null,null,null,null,null,null,null,"CHF"]
[null,null,null,null,null,null,null,null,null,null,null,null,null,null,null,null,null,null,null,null,null,null,null,null,null,null,null,null,"total p.2",{"$f":"SUM(AD60:AF95)","v":0}]
[null,null,null,null,null,null,{"$f":"K2","v":"Détenteur-détentrice d'un abonnement général (AG) à titre privé\nREMBOURSEMENT pour les membres du personnel universitaire "}]
[]
[]
[]
["N° ",{"$f":"B29","v":"Lieu, motif et dates des voyages"},null,null,null,null,null,null,null,null,null,null,null,null,null,null,null,null,null,null,null,null,null,null,null,null,null,null,"devise","Montant  \n(plein tarif)"]
[{"$f":"A95+1","v":57},null,null,null,null,null,null,null,null,null,null,null,null,null,null,null,null,null,null,null,null,null,null,null,null,null,null,null,"CHF"]
[{"$f":"A102+1","v":58},null,null,null,null,null,null,null,null,null,null,null,null,null,null,null,null,null,null,null,null,null,null,null,null,null,null,null,"CHF"]
[{"$f":"A103+1","v":59},null,null,null,null,null,null,null,null,null,null,null,null,null,null,null,null,null,null,null,null,null,null,null,null,null,null,null,"CHF"]
[{"$f":"A104+1","v":60},null,null,null,null,null,null,null,null,null,null,null,null,null,null,null,null,null,null,null,null,null,null,null,null,null,null,null,"CHF"]
[{"$f":"A105+1","v":61},null,null,null,null,null,null,null,null,null,null,null,null,null,null,null,null,null,null,null,null,null,null,null,null,null,null,null,"CHF"]
[{"$f":"A106+1","v":62},null,null,null,null,null,null,null,null,null,null,null,null,null,null,null,null,null,null,null,null,null,null,null,null,null,null,null,"CHF"]
[63,null,null,null,null,null,null,null,null,null,null,null,null,null,null,null,null,null,null,null,null,null,null,null,null,null,null,null,"CHF"]
[64,null,null,null,null,null,null,null,null,null,null,null,null,null,null,null,null,null,null,null,null,null,null,null,null,null,null,null,"CHF"]
[65,null,null,null,null,null,null,null,null,null,null,null,null,null,null,null,null,null,null,null,null,null,null,null,null,null,null,null,"CHF"]
[66,null,null,null,null,null,null,null,null,null,null,null,null,null,null,null,null,null,null,null,null,null,null,null,null,null,null,null,"CHF"]
[67,null,null,null,null,null,null,null,null,null,null,null,null,null,null,null,null,null,null,null,null,null,null,null,null,null,null,null,"CHF"]
[68,null,null,null,null,null,null,null,null,null,null,null,null,null,null,null,null,null,null,null,null,null,null,null,null,null,null,null,"CHF"]
[69,null,null,null,null,null,null,null,null,null,null,null,null,null,null,null,null,null,null,null,null,null,null,null,null,null,null,null,"CHF"]
[70,null,null,null,null,null,null,null,null,null,null,null,null,null,null,null,null,null,null,null,null,null,null,null,null,null,null,null,"CHF"]
[71,null,null,null,null,null,null,null,null,null,null,null,null,null,null,null,null,null,null,null,null,null,null,null,null,null,null,null,"CHF"]
[72,null,null,null,null,null,null,null,null,null,null,null,null,null,null,null,null,null,null,null,null,null,null,null,null,null,null,null,"CHF"]
[73,null,null,null,null,null,null,null,null,null,null,null,null,null,null,null,null,null,null,null,null,null,null,null,null,null,null,null,"CHF"]
[74,null,null,null,null,null,null,null,null,null,null,null,null,null,null,null,null,null,null,null,null,null,null,null,null,null,null,null,"CHF"]
[75,null,null,null,null,null,null,null,null,null,null,null,null,null,null,null,null,null,null,null,null,null,null,null,null,null,null,null,"CHF"]
[76,null,null,null,null,null,null,null,null,null,null,null,null,null,null,null,null,null,null,null,null,null,null,null,null,null,null,null,"CHF"]
[77,null,null,null,null,null,null,null,null,null,null,null,null,null,null,null,null,null,null,null,null,null,null,null,null,null,null,null,"CHF"]
[78,null,null,null,null,null,null,null,null,null,null,null,null,null,null,null,null,null,null,null,null,null,null,null,null,null,null,null,"CHF"]
[79,null,null,null,null,null,null,null,null,null,null,null,null,null,null,null,null,null,null,null,null,null,null,null,null,null,null,null,"CHF"]
[80,null,null,null,null,null,null,null,null,null,null,null,null,null,null,null,null,null,null,null,null,null,null,null,null,null,null,null,"CHF"]
[81,null,null,null,null,null,null,null,null,null,null,null,null,null,null,null,null,null,null,null,null,null,null,null,null,null,null,null,"CHF"]
[82,null,null,null,null,null,null,null,null,null,null,null,null,null,null,null,null,null,null,null,null,null,null,null,null,null,null,null,"CHF"]
[83,null,null,null,null,null,null,null,null,null,null,null,null,null,null,null,null,null,null,null,null,null,null,null,null,null,null,null,"CHF"]
[84,null,null,null,null,null,null,null,null,null,null,null,null,null,null,null,null,null,null,null,null,null,null,null,null,null,null,null,"CHF"]
[85,null,null,null,null,null,null,null,null,null,null,null,null,null,null,null,null,null,null,null,null,null,null,null,null,null,null,null,"CHF"]
[86,null,null,null,null,null,null,null,null,null,null,null,null,null,null,null,null,null,null,null,null,null,null,null,null,null,null,null,"CHF"]
[87,null,null,null,null,null,null,null,null,null,null,null,null,null,null,null,null,null,null,null,null,null,null,null,null,null,null,null,"CHF"]
[88,null,null,null,null,null,null,null,null,null,null,null,null,null,null,null,null,null,null,null,null,null,null,null,null,null,null,null,"CHF"]
[89,null,null,null,null,null,null,null,null,null,null,null,null,null,null,null,null,null,null,null,null,null,null,null,null,null,null,null,"CHF"]
[90,null,null,null,null,null,null,null,null,null,null,null,null,null,null,null,null,null,null,null,null,null,null,null,null,null,null,null,"CHF"]
[91,null,null,null,null,null,null,null,null,null,null,null,null,null,null,null,null,null,null,null,null,null,null,null,null,null,null,null,"CHF"]
[92,null,null,null,null,null,null,null,null,null,null,null,null,null,null,null,null,null,null,null,null,null,null,null,null,null,null,null,"CHF"]
[93,null,null,null,null,null,null,null,null,null,null,null,null,null,null,null,null,null,null,null,null,null,null,null,null,null,null,null,"CHF"]
[94,null,null,null,null,null,null,null,null,null,null,null,null,null,null,null,null,null,null,null,null,null,null,null,null,null,null,null,"CHF"]
[95,null,null,null,null,null,null,null,null,null,null,null,null,null,null,null,null,null,null,null,null,null,null,null,null,null,null,null,"CHF"]
[null,null,null,null,null,null,null,null,null,null,null,null,null,null,null,null,null,null,null,null,null,null,null,null,null,null,null,null,"total p.3",{"$f":"SUM(AD102:AF140)","v":0}]